fUSD/lending_fUSD_20240614
["ID","MTS","AMOUNT","RATE_DAILY","PERIOD"]
[329450908,1718371857770,-906.91042823,0.00024109,3]
[329450909,1718371857978,-913.04957177,0.00024109,3]
[329450910,1718371857994,-432.61142823,0.00024109,3]
[329450911,1718371858009,-590.62857177,0.00024109,3]
[329450912,1718371858031,-500.0,0.00024109,3]
[329450913,1718371858042,-500.0,0.00024109,3]
[329450914,1718371858057,-500.0,0.00024109,3]
[329450915,1718371858108,-673.9,0.00024109,3]
[329450916,1718371858132,-277.98394211,0.00024109,3]
[329450917,1718371858149,-222.01605789,0.00024109,3]
[329450918,1718371858162,-500.0,0.00024109,3]
[329450919,1718371858174,-1428.82,0.00024109,3]
[329450920,1718371858204,-842.43,0.00024109,3]
[329450921,1718371858221,-500.0,0.00024109,3]
[329450922,1718371858234,-500.0,0.00024109,3]
[329450923,1718371858247,-500.0,0.00024109,3]
[329450924,1718371858268,-1004.81,0.00024109,3]
[329450925,1718371858292,-2148.49480426,0.00024109,3]
[329450926,1718371859826,-1184.20519574,0.00024109,3]
[329450927,1718371859837,-82.2561552,0.00024109,3]
[329450928,1718371860153,-421.0738448,0.00024109,3]
[329450929,1718371860165,-2064.37875774,0.00024109,3]
[329450930,1718371860179,-78.72124226,0.00024109,3]
[329450931,1718371860207,-249.66876774,0.00024109,3]
[329450932,1718371860528,-250.33123226,0.00024109,3]
[329450933,1718371860539,-500.0,0.00024109,3]
[329450934,1718371860552,-151.0,0.00024109,7]
[329450935,1718371860575,-845.87,0.00024109,3]
[329450936,1718371860620,-679.76,0.00024109,3]
[329450937,1718371860645,-705.74,0.00024109,3]
[329450938,1718371860666,-500.0,0.00024109,3]
[329450939,1718371860682,-500.0,0.00024109,3]
[329450940,1718371860716,-1804.84,0.00024109,3]
[329450941,1718371860745,-500.0,0.00024109,3]
[329450942,1718371860774,-856.0037655,0.00024109,3]
[329450943,1718371860825,-720.15541302,0.00024109,3]
[329450944,1718371860844,-1691.08556516,0.00024109,3]
[329450945,1718371860858,-2584.92003195,0.00024109,3]
[329450946,1718371860901,-2737.33522437,0.00024109,3]
[329450947,1718371860930,-500.0,0.00024109,3]
[329450948,1718371860941,-505.23497523,0.00024109,3]
[329450949,1718371860959,-6696.36,0.00024109,3]
[329450950,1718371860973,-523.96694687,0.00024109,3]
[329450951,1718371860996,-500.0,0.00024109,3]
[329450952,1718371861015,-500.0,0.00024109,3]
[329450953,1718371861036,-500.0,0.00024109,3]
[329450954,1718371861065,-500.0,0.00024109,3]
[329450955,1718371861076,-500.0,0.00024109,3]
[329450956,1718371861086,-1281.42,0.00024109,3]
[329450957,1718371861102,-500.0,0.00024109,3]
[329450958,1718371861119,-151.0,0.00024109,7]
[329450959,1718371861129,-981.52325115,0.00024109,2]
[329450960,1718371861217,-500.0,0.00024109,3]
[329450961,1718371861229,-1547.07,0.00024109,3]
[329450962,1718371861242,-275.97903338,0.00024109,3]
[329450963,1718371861268,-224.02096662,0.00024109,3]
[329450964,1718371861279,-500.0,0.00024109,3]
[329450965,1718371861295,-151.0,0.00024109,7]
[329450966,1718371861306,-395.62132306,0.00024109,3]
[329450967,1718371861531,-109.40872673,0.00024109,3]
[329450968,1718371861545,-573.87,0.00024109,3]
[329450969,1718371861557,-500.0,0.00024109,3]
[329450970,1718371861569,-500.0,0.00024109,3]
[329450971,1718371861583,-500.0,0.00024109,3]
[329450972,1718371861733,-151.0,0.00024109,7]
[329450973,1718371861748,-500.0,0.00024109,3]
[329450974,1718371861770,-549.91612728,0.00024109,3]
[329450975,1718371861784,-267.94484591,0.00024109,3]
[329450976,1718371862363,-385.94515409,0.00024109,3]
[329450977,1718371862392,-500.0,0.00024109,3]
[329450978,1718371862411,-171.58895582,0.00024109,3]
[329450982,1718371955045,4000.0,0.00028,90]
[329450988,1718372144331,1500.0,0.00026849,60]
[329450989,1718372144618,1500.0,0.00027123,60]
[329450994,1718372786707,1500.0,0.00026849,60]
[329450995,1718372787429,1500.0,0.00027123,60]
[329450997,1718372867933,3000.0,0.00027,60]
[329450999,1718372989844,5050.0,0.00028,90]
[329451031,1718373034646,-536.7196223,0.00013834,2]
[329451032,1718373034665,-161.20516216,0.00013835,2]
[329451033,1718373034678,-161.20516213,0.00013857,2]
[329451034,1718373034695,-161.20516213,0.00013878,2]
[329451035,1718373034735,-283.62620805,0.000139,2]
[329451036,1718373034762,-161.20516213,0.000139,2]
[329451037,1718373034778,-8330.03026453,0.000139,2]
[329451038,1718373034816,-300.0,0.00013936,2]
[329451039,1718373034868,-23890.0,0.00013937,2]
[329451040,1718373034880,-150.0,0.00013973,2]
[329451041,1718373034904,-6862.565222,0.0001399,2]
[329451042,1718373034918,-152.14,0.0001399,2]
[329451043,1718373034948,-148594.12203291,0.00014,2]
[329451044,1718373034973,-51280.83622074,0.00014,2]
[329451045,1718373035548,-1913.12,0.00014,2]
[329451071,1718373040697,-399.68556348,0.00014,2]
[329451072,1718373041680,-196030.91769239,0.00014,2]
[329451073,1718373041695,-203969.08230761,0.00014,2]
[329451074,1718373042187,-4013.20800034,0.00014,2]
[329451081,1718373044273,-2009.00955359,0.00014,2]
[329451082,1718373044286,-1522.78071388,0.00014,2]
[329451083,1718373044301,-1876.742,0.00014,2]
[329451084,1718373044650,-1279.35631462,0.00014,2]
[329451085,1718373044677,-379.38771735,0.00014,2]
[329451086,1718373044699,-70858.30368196,0.00014,2]
[329451087,1718373044723,-18002.70300256,0.00014,2]
[329451089,1718373045099,-2492.56313245,0.00014,2]
[329451093,1718373045123,-4846.45439519,0.00014,2]
[329451095,1718373045136,-508.1055248,0.00014,2]
[329451120,1718373045538,-1835.89565874,0.00014,2]
[329451123,1718373045551,-204804.80986287,0.00014,2]
[329451125,1718373045571,-283.38646046,0.00014,2]
[329451163,1718373046200,-701.33067573,0.00014,2]
[329451165,1718373046220,-614.98003177,0.00014,2]
[329451167,1718373046239,-4205.66107782,0.00014,2]
[329451178,1718373046433,-11987.00533168,0.00014,2]
[329451180,1718373046448,-3835.66346537,0.00014,2]
[329451182,1718373046463,-4331.35846377,0.00014,2]
[329451185,1718373046477,-12591.81261402,0.00014,2]
[329451187,1718373046494,-4764.44253311,0.00014,2]
[329451190,1718373046520,-621.91316261,0.00014,2]
[329451193,1718373046551,-655.16092701,0.00014,2]
[329451196,1718373046573,-1387.6,0.00014,2]
[329451198,1718373046592,-394.48278515,0.00014,2]
[329451220,1718373046980,-972.86619969,0.00014,2]
[329451221,1718373046991,-2487.9464448,0.00014,2]
[329451223,1718373047002,-7375.05141962,0.00015,2]
[329451225,1718373047022,-695.44475,0.00015,2]
[329451227,1718373047037,-506.62014946,0.00015,2]
[329451244,1718373047313,-1130.54686907,0.00015,2]
[329451247,1718373047327,-692.43249975,0.00015,2]
[329451281,1718373047666,-930.0,0.00015,2]
[329451331,1718373048456,-3157.15,0.00015,2]
[329451334,1718373048470,-337.08969517,0.00015,2]
[329451355,1718373048894,-627.44,0.00015,2]
[329451356,1718373048908,-21264.49106437,0.00015,2]
[329451375,1718373049247,-255.5202649,0.00013999,2]
[329451377,1718373049273,-613.53,0.00013999,2]
[329451380,1718373049290,-73.84764852,0.00013999,2]
[329451382,1718373049306,-2685.52451527,0.00015,2]
[329451397,1718373049619,-402.95895236,0.00015,2]
[329451420,1718373049977,-377.33058206,0.00015,2]
[329451532,1718373428702,1519.89651445,0.00026849,60]
[329451563,1718374233323,-942.89791342,0.00013897,2]
[329451567,1718374233373,-2179.76293046,0.00013936,2]
[329451569,1718374233400,-172.80456472,0.00013936,2]
[329451571,1718374233424,-454.56,0.00013937,2]
[329451573,1718374233452,-164.28935887,0.00014248,2]
[329451574,1718374233490,-23597.78056712,0.00014997,2]
[329451576,1718374233507,-814.12801863,0.00014998,2]
[329451578,1718374233526,-869.13959708,0.00014998,2]
[329451579,1718374233604,-155.0,0.00014998,2]
[329451580,1718374233621,-688.78661675,0.00014998,2]
[329451581,1718374233659,-715.81385658,0.00014998,2]
[329451582,1718374233684,-539.55427512,0.00014998,2]
[329451583,1718374234163,-1094.72364763,0.00014998,2]
[329451584,1718374234216,-482.2654897,0.00014998,2]
[329451585,1718374234429,-922.4599996,0.00014998,2]
[329451586,1718374235179,-1231.85132041,0.00014998,2]
[329451587,1718374235209,-311.84172578,0.00014998,2]
[329451588,1718374235228,-1119.57653929,0.00014998,2]
[329451589,1718374235242,-2374.14832813,0.00014998,2]
[329451590,1718374235260,-195.79238693,0.00014998,2]
[329451591,1718374235276,-481.85167187,0.00014998,2]
[329451592,1718374235312,-3597.6238895,0.00014998,2]
[329451593,1718374235324,-386.62849784,0.00014998,2]
[329451594,1718374235355,-174.45,0.00014998,2]
[329451595,1718374235366,-336.78819746,0.00014999,2]
[329451596,1718374235382,-1657.16604325,0.00015,2]
[329451597,1718374235423,-1119.44553033,0.00015,2]
[329451598,1718374235547,-71279.58379396,0.00015,2]
[329451599,1718374235560,-800.5291891,0.00015,2]
[329451600,1718374235593,-856.26166783,0.00015,2]
[329451601,1718374235609,-1082.26155855,0.00015,2]
[329451602,1718374235645,-2500.008256,0.00015,2]
[329451603,1718374235682,-759.08000022,0.00015,2]
[329451623,1718374239968,-817.15494367,0.00015,2]
[329451624,1718374239987,-566.48468486,0.00015,2]
[329451626,1718374240003,-32907.94234365,0.00015,2]
[329451628,1718374240018,-403.80780873,0.00015,2]
[329451630,1718374240061,-346.7403356,0.00015,2]
[329451632,1718374240534,-285.67915948,0.00015,2]
[329451640,1718374244720,-855.7422984,0.00015,2]
[329451642,1718374244741,-3027.95925375,0.00015,2]
[329451644,1718374244772,-470.9113353,0.00015,2]
[329451650,1718374245772,-399.89590865,0.00015,2]
[329451651,1718374245790,-531.90778384,0.00015,2]
[329451652,1718374245812,-335.125,0.00015,2]
[329451653,1718374245836,-91439.1823538,0.00015,2]
[329451654,1718374245848,-761.54349,0.00015,2]
[329451655,1718374245868,-8330.03026451,0.00015282,2]
[329451656,1718374245883,-3101.78,0.00015282,2]
[329451657,1718374245897,-917.14,0.00015282,2]
[329451658,1718374245922,-612.38,0.00016485,2]
[329451659,1718374245935,-150.99,0.00016485,2]
[329451660,1718374245954,-8330.03026451,0.00016664,2]
[329451661,1718374245965,-1429.49,0.00016664,2]
[329451662,1718374245985,-2790.0,0.000172,2]
[329451663,1718374246020,-855.0,0.000172,2]
[329451664,1718374246032,-8330.03026451,0.00018045,2]
[329451665,1718374246053,-1038.93,0.00018132,2]
[329451666,1718374246063,-249.97,0.00018156,2]
[329451667,1718374246077,-250.0,0.00018208,2]
[329451668,1718374246088,-188.12,0.00018212,2]
[329451669,1718374246116,-160.03,0.00018239,2]
[329451670,1718374246136,-478.4,0.00018388,2]
[329451671,1718374246156,-192.13,0.00018406,2]
[329451672,1718374246170,-250.0,0.00018486,2]
[329451674,1718374246196,-200.0,0.00018581,2]
[329451676,1718374246207,-200.01,0.00018737,2]
[329451679,1718374246234,-612.38,0.00018749,2]
[329451681,1718374246267,-150.63,0.00018776,2]
[329451684,1718374246310,-1002.11987635,0.00019178,2]
[329451686,1718374246328,-200.0,0.00019178,2]
[329451687,1718374246343,-200.0,0.00019178,2]
[329451688,1718374246372,-200.0,0.00019178,2]
[329451689,1718374246413,-200.0,0.00019178,2]
[329451690,1718374246425,-200.0,0.00019178,2]
[329451691,1718374246447,-200.0,0.00019178,2]
[329451692,1718374246462,-179.0,0.00019178,2]
[329451693,1718374246478,-55000.0,0.00019178,2]
[329451694,1718374246496,-3146.2,0.00019178,2]
[329451695,1718374246513,-192.13,0.00019365,2]
[329451696,1718374246529,-8330.03026451,0.00019427,2]
[329451697,1718374246550,-183.62178432,0.00019441,2]
[329451698,1718374246581,-182.56,0.00019541,2]
[329451699,1718374246612,-151.0,0.00019625,2]
[329451700,1718374246623,-1005.91889257,0.0001986,2]
[329451701,1718374246664,-1276.59595703,0.0002,2]
[329451702,1718374246693,-157.05164137,0.0002,2]
[329451703,1718374246708,-170.18980355,0.0002,2]
[329451704,1718374246739,-1787.71222064,0.0002,2]
[329451705,1718374246768,-486.22456388,0.0002,2]
[329451706,1718374246782,-155.32499341,0.0002,2]
[329451707,1718374246817,-6286.72694046,0.0002,2]
[329451708,1718374246832,-761.5435,0.0002,2]
[329451709,1718374246851,-31889.0,0.0002,2]
[329451710,1718374246877,-226.78109354,0.000201,2]
[329451711,1718374246893,-1700.0,0.00020136,2]
[329451712,1718374246917,-11743.0,0.000204,3]
[329451714,1718374246933,-3656.642,0.00020543,2]
[329451717,1718374246944,-151.0,0.00020663,2]
[329451719,1718374246979,-1700.0,0.00020684,2]
[329451720,1718374247007,-478.4,0.00020686,2]
[329451721,1718374247025,-8330.03026451,0.00020809,2]
[329451722,1718374247061,-249.97,0.00020896,2]
[329451723,1718374247095,-11743.0,0.000209,5]
[329451724,1718374247121,-612.38,0.00021013,2]
[329451725,1718374247166,-500.0,0.00021028,2]
[329451726,1718374247200,-500.0,0.00021028,2]
[329451727,1718374247217,-182.795301,0.00021028,2]
[329451728,1718374247250,-500.0,0.00021028,2]
[329451729,1718374247263,-500.0,0.00021028,2]
[329451730,1718374247283,-500.0,0.00021028,2]
[329451731,1718374247320,-500.0,0.00021028,2]
[329451732,1718374247334,-500.0,0.00021028,2]
[329451733,1718374247347,-500.0,0.00021028,2]
[329451734,1718374247373,-500.0,0.00021028,2]
[329451735,1718374247410,-500.0,0.00021028,2]
[329451736,1718374247448,-500.0,0.00021028,2]
[329451737,1718374247460,-436.82218245,0.00021028,2]
[329451738,1718374247483,-500.0,0.00021028,2]
[329451739,1718374247525,-500.0,0.00021028,2]
[329451740,1718374247547,-359.0,0.00021031,2]
[329451741,1718374247632,-1652.0,0.00021031,2]
[329451742,1718374247688,-442.0,0.00021031,2]
[329451743,1718374247717,-811.0,0.00021031,2]
[329451744,1718374247745,-165.0,0.00021031,2]
[329451745,1718374247758,-301.351,0.00021031,2]
[329451746,1718374247781,-1304.0,0.00021031,2]
[329451747,1718374247791,-2408.0,0.00021031,2]
[329451748,1718374247823,-150.0,0.00021031,2]
[329451749,1718374247839,-447.0,0.00021031,2]
[329451750,1718374247873,-546.0,0.00021031,2]
[329451751,1718374247901,-3099.348,0.00021031,2]
[329451752,1718374247925,-1700.0,0.00021232,2]
[329451753,1718374247948,-3717.125,0.00021364,2]
[329451754,1718374247992,-500.0,0.00021506,2]
[329451755,1718374248012,-800.0,0.00021506,2]
[329451756,1718374248025,-200.0,0.00021696,2]
[329451757,1718374248051,-151.0,0.000217,2]
[329451758,1718374248069,-1700.0,0.0002178,2]
[329451759,1718374248097,-503.00930797,0.000219,2]
[329451760,1718374248119,-242.84,0.00021918,2]
[329451761,1718374248131,-800.0,0.00022054,2]
[329451762,1718374248145,-8330.03026451,0.00022191,2]
[329451763,1718374248168,-1700.0,0.00022328,2]
[329451764,1718374248180,-500.0,0.00022602,2]
[329451765,1718374248202,-500.0,0.00022602,2]
[329451766,1718374248214,-800.0,0.00022602,2]
[329451767,1718374248225,-151.0,0.00022738,2]
[329451768,1718374248236,-1700.0,0.00022876,2]
[329451769,1718374248252,-478.4,0.00022985,2]
[329451770,1718374248267,-300.0,0.00023131,2]
[329451771,1718374248280,-800.0,0.0002315,2]
[329451772,1718374248292,-160.0,0.00023195,2]
[329451773,1718374248317,-612.38,0.00023277,2]
[329451774,1718374248328,-300.0,0.00023435,2]
[329451775,1718374248342,-8330.03026451,0.00023573,2]
[329451776,1718374248362,-249.97,0.00023636,2]
[329451777,1718374248375,-3712.636,0.00023659,2]
[329451778,1718374248387,-454.63994464,0.00023678,2]
[329451779,1718374248401,-500.0,0.00023698,2]
[329451780,1718374248413,-500.0,0.00023698,2]
[329451781,1718374248425,-800.0,0.00023698,2]
[329451783,1718374248445,-165.57940927,0.000237,7]
[329451784,1718374248458,-3696.313,0.00023701,2]
[329451786,1718374248606,-300.0,0.00023739,2]
[329451787,1718374248633,-151.0,0.00023775,2]
[329451788,1718374248661,-200.0,0.00023803,2]
[329451789,1718374248682,-500.0,0.00023879,2]
[329451790,1718374248717,-447.0883115,0.00023879,2]
[329451791,1718374248733,-69888.11887105,0.0002388,2]
[329451792,1718374248763,-200.0,0.00023916,2]
[329451793,1718374248798,-1700.0,0.00023972,2]
[329451794,1718374248828,-197.40773294,0.0002399,2]
[329451795,1718374248857,-312.06488343,0.00024,10]
[329451796,1718374248869,-364.67036088,0.00024,3]
[329451797,1718374248880,-184172.0,0.00024,2]
[329451798,1718374248891,-172.11582535,0.00024009,2]
[329451799,1718374248902,-9458.30509181,0.00024009,2]
[329451800,1718374248913,-10000.0,0.00024009,2]
[329451801,1718374248926,-1000.0,0.00024009,2]
[329451802,1718374248939,-4060.359,0.00024009,2]
[329451803,1718374248951,-811.0,0.00024031,2]
[329451804,1718374248970,-300.51160797,0.00024046,2]
[329451805,1718374248984,-151.27,0.0002409,2]
[329451806,1718374249004,-1287.21623907,0.000241,2]
[329451807,1718374249026,-305.0,0.000241,2]
[329451808,1718374249049,-611.0,0.000241,2]
[329451809,1718374249077,-190.0,0.000241,7]
[329451810,1718374249110,-150.0,0.000241,4]
[329451811,1718374249139,-978.9938787,0.00024102,2]
[329451812,1718374249154,-16563.5586388,0.00024102,2]
[329451813,1718374249186,-1361.2536881,0.00024102,2]
[329451814,1718374249197,-200.21,0.00024104,2]
[329451815,1718374249209,-218.15331281,0.00024107,2]
[329451816,1718374249219,-1067.04191087,0.00024107,2]
[329451817,1718374249230,-2368.92760573,0.00024107,2]
[329451818,1718374249242,-155.69313599,0.00024107,2]
[329451819,1718374249273,-596.86866037,0.00024107,2]
[329451820,1718374249283,-155.0,0.00024107,2]
[329451821,1718374249303,-158.42799102,0.00024107,2]
[329451822,1718374249329,-1000.0,0.00024107,2]
[329451823,1718374249345,-413.37213696,0.00024107,2]
[329451824,1718374249357,-3876.19058384,0.00024107,2]
[329451825,1718374249367,-157.41800575,0.00024107,2]
[329451826,1718374249388,-501.34735181,0.00024109,3]
[329451827,1718374249402,-500.0,0.00024109,3]
[329451828,1718374249415,-500.0,0.00024109,3]
[329451829,1718374249425,-500.0,0.00024109,3]
[329451832,1718374249442,-500.0,0.00024109,3]
[329451834,1718374249453,-501.89204406,0.00024109,3]
[329451836,1718374249466,-550.1180404,0.00024109,3]
[329451838,1718374249486,-500.0,0.00024109,3]
[329451840,1718374249497,-227.85459993,0.00024109,3]
[329451842,1718374249510,-500.0,0.00024109,3]
[329451844,1718374249529,-500.0,0.00024109,3]
[329451846,1718374249543,-500.0,0.00024109,3]
[329451848,1718374249554,-431.52324479,0.00024109,3]
[329451850,1718374249582,-500.0,0.00024109,3]
[329451852,1718374249593,-162.99510184,0.00024109,3]
[329451854,1718374249604,-500.0,0.00024109,3]
[329451856,1718374249621,-500.0,0.00024109,3]
[329451858,1718374249632,-500.0,0.00024109,3]
[329451859,1718374249643,-500.0,0.00024109,3]
[329451862,1718374249657,-500.0,0.00024109,3]
[329451864,1718374249679,-537.95,0.00024109,3]
[329451867,1718374249710,-500.0,0.00024109,3]
[329451870,1718374249732,-500.0,0.00024109,3]
[329451872,1718374249742,-500.0,0.00024109,3]
[329451874,1718374249754,-500.0,0.00024109,3]
[329451876,1718374249769,-648.2711199,0.00024109,3]
[329451878,1718374249781,-500.0,0.00024109,3]
[329451880,1718374249797,-500.0,0.00024109,3]
[329451882,1718374249807,-500.0,0.00024109,3]
[329451884,1718374249822,-500.0,0.00024109,3]
[329451885,1718374249844,-500.0,0.00024109,3]
[329451886,1718374249856,-500.0,0.00024109,3]
[329451888,1718374249880,-500.0,0.00024109,3]
[329451890,1718374249891,-500.0,0.00024109,3]
[329451892,1718374249904,-500.0,0.00024109,3]
[329451893,1718374249918,-500.0,0.00024109,3]
[329451895,1718374249943,-502.19345685,0.00024109,3]
[329451897,1718374249966,-504.67969515,0.00024109,3]
[329451898,1718374249983,-500.0,0.00024109,3]
[329451900,1718374249997,-500.0,0.00024109,3]
[329451901,1718374250014,-500.0,0.00024109,3]
[329451904,1718374250031,-500.0,0.00024109,3]
[329451905,1718374250045,-500.0,0.00024109,3]
[329451907,1718374250069,-500.0,0.00024109,3]
[329451909,1718374250092,-516.01352579,0.00024109,3]
[329451912,1718374250118,-500.0,0.00024109,3]
[329451914,1718374250143,-500.0,0.00024109,3]
[329451916,1718374250168,-500.0,0.00024109,3]
[329451917,1718374250193,-500.0,0.00024109,3]
[329451919,1718374250221,-500.0,0.00024109,3]
[329451921,1718374250240,-500.0,0.00024109,3]
[329451923,1718374250258,-500.0,0.00024109,3]
[329451925,1718374250285,-500.0,0.00024109,3]
[329451927,1718374250297,-578.52,0.00024109,3]
[329451928,1718374250318,-509.49955042,0.00024109,3]
[329451929,1718374250348,-500.0,0.00024109,3]
[329451931,1718374250425,-500.0,0.00024109,3]
[329451933,1718374250444,-500.0,0.00024109,3]
[329451936,1718374250507,-500.0,0.00024109,3]
[329451937,1718374250579,-743.4,0.00024109,3]
[329451939,1718374250625,-506.16992993,0.00024109,3]
[329451941,1718374250657,-500.0,0.00024109,3]
[329451942,1718374250688,-500.0,0.00024109,3]
[329451944,1718374250710,-500.0,0.00024109,3]
[329451946,1718374250757,-500.0,0.00024109,3]
[329451948,1718374250770,-500.0,0.00024109,3]
[329451950,1718374250781,-500.0,0.00024109,3]
[329451952,1718374250798,-500.0,0.00024109,3]
[329451954,1718374250810,-364.67474478,0.00024109,3]
[329451956,1718374250822,-500.0,0.00024109,3]
[329451958,1718374250849,-559.01015135,0.00024109,3]
[329451961,1718374250900,-500.0,0.00024109,3]
[329451963,1718374250913,-500.0,0.00024109,3]
[329451964,1718374250937,-500.0,0.00024109,3]
[329451966,1718374250949,-508.1632663,0.00024109,3]
[329451968,1718374250980,-501.29915126,0.00024109,3]
[329451969,1718374251006,-500.0,0.00024109,3]
[329451971,1718374251029,-500.0,0.00024109,3]
[329451974,1718374251056,-500.0,0.00024109,3]
[329451976,1718374251079,-303.90364617,0.00024109,3]
[329451978,1718374251092,-194.42983586,0.00024109,3]
[329451979,1718374251112,-500.0,0.00024109,3]
[329451982,1718374251152,-500.0,0.00024109,3]
[329451983,1718374251196,-500.0,0.00024109,2]
[329451985,1718374251209,-500.0,0.00024109,2]
[329451986,1718374251220,-500.0,0.00024109,2]
[329451988,1718374251231,-250.871778,0.00024109,2]
[329451990,1718374251251,-500.0,0.00024109,2]
[329451992,1718374251271,-500.0,0.00024109,2]
[329451994,1718374251294,-379.54039186,0.00024109,2]
[329451995,1718374251340,-642.25660573,0.00024109,2]
[329451996,1718374251353,-500.0,0.00024109,2]
[329451998,1718374251369,-500.0,0.00024109,2]
[329452001,1718374251395,-500.0,0.00024109,2]
[329452003,1718374251417,-500.0,0.00024109,2]
[329452005,1718374251434,-500.0,0.00024109,2]
[329452007,1718374251488,-500.0,0.00024109,2]
[329452009,1718374251499,-500.0,0.00024109,2]
[329452010,1718374251539,-500.0,0.00024109,3]
[329452013,1718374251576,-500.0,0.00024109,3]
[329452014,1718374251599,-500.0,0.00024109,3]
[329452016,1718374251611,-504.80591888,0.00024109,3]
[329452018,1718374251626,-500.0,0.00024109,3]
[329452020,1718374251638,-500.0,0.00024109,3]
[329452022,1718374251666,-500.0,0.00024109,3]
[329452025,1718374251717,-250.0,0.00024109,3]
[329452027,1718374251780,-500.0,0.00024109,3]
[329452028,1718374251809,-500.0,0.00024109,3]
[329452031,1718374251861,-500.0,0.00024109,3]
[329452032,1718374251884,-500.0,0.00024109,3]
[329452034,1718374251902,-500.0,0.00024109,3]
[329452036,1718374251916,-500.0,0.00024109,3]
[329452038,1718374251931,-500.0,0.00024109,3]
[329452040,1718374251944,-510.03981985,0.00024109,3]
[329452042,1718374251955,-500.0,0.00024109,3]
[329452047,1718374252017,-500.0,0.00024109,3]
[329452048,1718374252084,-561.90142057,0.00024109,3]
[329452050,1718374252096,-500.0,0.00024109,3]
[329452052,1718374252128,-968.92,0.00024109,3]
[329452054,1718374252154,-573.27058608,0.00024109,3]
[329452055,1718374252180,-500.0,0.00024109,3]
[329452057,1718374252193,-500.0,0.00024109,3]
[329452059,1718374252233,-500.0,0.00024109,3]
[329452061,1718374252282,-500.0,0.00024109,3]
[329452063,1718374252295,-500.0,0.00024109,3]
[329452064,1718374252348,-500.0,0.00024109,3]
[329452066,1718374252384,-231.25495265,0.00024109,3]
[329452069,1718374252414,-500.0,0.00024109,3]
[329452070,1718374252436,-503.48021753,0.00024109,3]
[329452072,1718374252448,-500.0,0.00024109,3]
[329452073,1718374252461,-825.06,0.00024109,3]
[329452075,1718374252473,-500.0,0.00024109,3]
[329452077,1718374252485,-500.0,0.00024109,3]
[329452079,1718374252498,-701.8,0.00024109,3]
[329452081,1718374252514,-1000.0,0.00024109,3]
[329452083,1718374252540,-500.0,0.00024109,3]
[329452085,1718374252582,-500.0,0.00024109,3]
[329452087,1718374252595,-500.0,0.00024109,3]
[329452089,1718374252624,-500.0,0.00024109,3]
[329452091,1718374252639,-500.0,0.00024109,3]
[329452093,1718374252692,-337.11543662,0.00024109,3]
[329452096,1718374252732,-500.0,0.00024109,3]
[329452098,1718374252776,-510.8104891,0.00024109,3]
[329452100,1718374252841,-522.38,0.00024109,3]
[329452102,1718374252898,-500.0,0.00024109,3]
[329452104,1718374252912,-500.0,0.00024109,3]
[329452107,1718374252960,-500.0,0.00024109,3]
[329452109,1718374252996,-500.0,0.00024109,3]
[329452111,1718374253024,-500.0,0.00024109,3]
[329452113,1718374253039,-500.0,0.00024109,3]
[329452115,1718374253053,-500.0,0.00024109,3]
[329452117,1718374253080,-500.0,0.00024109,3]
[329452118,1718374253120,-500.0,0.00024109,3]
[329452120,1718374253137,-500.0,0.00024109,3]
[329452123,1718374253173,-500.0,0.00024109,3]